[Event "IIFL Wealth 4th Mumbai GM"]
[Site "Mumbai"]
[Date "2018.12.30"]
[Round "1"]
[White "Nayem, Haque"]
[Black "Tran, Minh Thang"]
[Result "0-1"]
[ECO "A00"]
[WhiteElo "2083"]
[BlackElo "2342"]
[Annotator "NA"]
[PlyCount "78"]
[EventDate "2018.12.30"]
[EventType "swiss"]
[EventCountry "IND"]
[SourceTitle "playchess.com"]
[Source "ChessBase"]
[SourceQuality "1"]
[TimeControl "40/5400+30:1800+30"]

1. e3 {[%emt 0:00:00]} b6 {[%emt 0:00:02]} 2. Nf3 {[%emt 0:00:23]} Bb7 {[%emt 0:00:10]} 3. d4 {[%emt 0:00:17]} Nf6 {[%emt 0:00:18]} 4. c4 {[%emt 0:00:42]} g6 {[%emt 0:00:20]} 5. Nc3 {[%emt 0:00:22]} Bg7 {[%emt 0:00:07]} 6. Bd3 {[%emt 0:00:33]} d6 {[%emt 0:00:30]} 7. e4 {[%emt 0:02:21]} O-O {[%emt 0:00:41]} 8. Bg5 {[%emt 0:00:28]} Nbd7 {[%emt 0:01:25]} 9. O-O {[%emt 0:03:31]} a6 {[%emt 0:03:47]} 10. Qe2 {[%emt 0:06:44]} c5 {[%emt 0:00:55]} 11. d5 {[%emt 0:00:29]} Ng4 {[%emt 0:00:08]} 12. h3 {[%emt 0:01:23]} Nge5 {[%emt 0:00:08]} 13. Nxe5 {[%emt 0:01:52]} Nxe5 {[%emt 0:05:29]} 14. f4 {[%emt 0:07:45]} Nxd3 {[%emt 0:01:15]} 15. Qxd3 {[%emt 0:00:02]} b5 {[%emt 0:00:20]} 16. Rfe1 {[%emt 0:05:49]} bxc4 {[%emt 0:01:39]} 17. Qg3 {[%emt 0:00:19]} Rb8 {[%emt 0:02:14]} 18. Qh4 {[%emt 0:08:29]} Bd4+ {[%emt 0:05:41]} 19. Kh1 {[%emt 0:00:15]} f6 {[%emt 0:00:13]} 20. Bh6 {[%emt 0:00:21]} Rf7 {[%emt 0:00:06]} 21. Re2 {[%emt 0:03:07]} Qa5 {[%emt 0:14:23]} 22. Rc1 {[%emt 0:05:22]} Bc8 {[%emt 0:02:50]} 23. Qg3 {[%emt 0:02:03]} Kh8 {[%emt 0:02:46]} 24. e5 {[%emt 0:03:22]} Bf5 {[%emt 0:00:12]} 25. e6 {[%emt 0:22:33]} Rg7 {[%emt 0:00:06]} 26. Bxg7+ {[%emt 0:00:15]} Kxg7 {[%emt 0:00:11]} 27. Qf3 {[%emt 0:00:30]} Bd3 {[%emt 0:01:15]} 28. Rd2 {[%emt 0:00:47]} Rb4 {[%emt 0:05:34]} 29. b3 {[%emt 0:06:32]} Bxc3 {[%emt 0:00:57]} 30. Rxc3 {[%emt 0:03:41]} cxb3 {[%emt 0:00:05]} 31. a3 {[%emt 0:12:55]} b2 {[%emt 0:01:14]} 32. axb4 {[%emt 0:00:18]} b1=Q+ {[%emt 0:00:15]} 33. Rd1 {[%emt 0:00:01]} Qbxb4 {[%emt 0:01:04]} 34. Rcxd3 {[%emt 0:00:20]} c4 {[%emt 0:01:15]} 35. Rd4 {[%emt 0:01:49]} Qb3 {[%emt 0:00:05]} 36. Qf1 {[%emt 0:01:42]} c3 {[%emt 0:00:10]} 37. Rc1 {[%emt 0:00:13]} c2 {[%emt 0:00:30]} 38. Qf2 {[%emt 0:00:44]} Qb1 {[%emt 0:00:14]} 39. Qg1 {[%emt 0:00:40]} Qaa1 {[%emt 0:00:06]} 0-1

[Event "IIFL Wealth 4th Mumbai GM"]
[Site "Mumbai"]
[Date "2018.12.30"]
[Round "1"]
[White "Thipsay, Bagyashree Sathe"]
[Black "Siva Mahadevan"]
[Result "1/2-1/2"]
[ECO "B53"]
[WhiteElo "2028"]
[BlackElo "2333"]
[Annotator "NA"]
[PlyCount "85"]
[EventDate "2018.12.30"]
[EventType "swiss"]
[EventCountry "IND"]
[SourceTitle "playchess.com"]
[Source "ChessBase"]
[SourceQuality "1"]
[TimeControl "40/5400+30:1800+30"]

1. e4 {[%emt 0:00:00]} c5 {[%emt 0:00:00]} 2. Nf3 {[%emt 0:00:00]} d6 {[%emt 0:00:00]} 3. d4 {[%emt 0:00:00]} cxd4 {[%emt 0:00:11]} 4. Qxd4 {[%emt 0:00:00]} Nc6 {[%emt 0:00:23]} 5. Bb5 {[%emt 0:00:00]} Bd7 {[%emt 0:00:18]} 6. Qd3 {[%emt 0:00:05]} g6 {[%emt 0:01:00]} 7. c4 {[%emt 0:02:05]} Bg7 {[%emt 0:00:26]} 8. O-O {[%emt 0:00:28]} Nf6 {[%emt 0:00:32]} 9. Nc3 {[%emt 0:00:06]} O-O {[%emt 0:01:31]} 10. h3 {[%emt 0:01:53]} Rc8 {[%emt 0:03:46]} 11. Be3 {[%emt 0:05:21]} a6 {[%emt 0:02:10]} 12. Bxc6 {[%emt 0:00:33]} Bxc6 {[%emt 0:00:32]} 13. Rac1 {[%emt 0:02:36]} Nd7 {[%emt 0:29:18]} 14. Nd4 {[%emt 0:00:49]} e6 {[%emt 0:10:54]} 15. Rfd1 {[%emt 0:06:41]} Qe7 {[%emt 0:01:33]} 16. Qe2 {[%emt 0:06:08]} f5 {[%emt 0:12:24]} 17. Nxc6 {[%emt 0:07:22]} Rxc6 {[%emt 0:04:33]} 18. exf5 {[%emt 0:05:04]} gxf5 {[%emt 0:01:12]} 19. Bd4 {[%emt 0:01:36]} e5 {[%emt 0:07:49]} 20. Nd5 {[%emt 0:04:40]} Qf7 {[%emt 0:03:41]} 21. Bc3 {[%emt 0:00:42]} f4 {[%emt 0:06:51]} 22. f3 {[%emt 0:01:56]} Nf6 {[%emt 0:01:49]} 23. Nxf6+ {[%emt 0:00:54]} Bxf6 {[%emt 0:00:29]} 24. Rd5 {[%emt 0:00:30]} Rfc8 {[%emt 0:00:58]} 25. Qd3 {[%emt 0:02:22]} Be7 {[%emt 0:05:06]} 26. b3 {[%emt 0:00:09]} b5 {[%emt 0:01:58]} 27. Bb2 {[%emt 0:03:38]} Qg6 {[%emt 0:01:49]} 28. Qe2 {[%emt 0:01:20]} bxc4 {[%emt 0:01:11]} 29. bxc4 {[%emt 0:01:01]} Bd8 {[%emt 0:01:02]} 30. c5 {[%emt 0:03:20]} Rxc5 {[%emt 0:00:39]} 31. Rdxc5 {[%emt 0:02:52]} Bb6 {[%emt 0:00:48]} 32. Qxa6 {[%emt 0:00:38]} Bxc5+ {[%emt 0:00:07]} 33. Kh1 {[%emt 0:00:06]} Re8 {[%emt 0:00:37]} 34. Ba3 {[%emt 0:03:02]} Bxa3 {[%emt 0:00:48]} 35. Qxa3 {[%emt 0:00:02]} d5 {[%emt 0:00:29]} 36. Qb3 {[%emt 0:01:26]} Rd8 {[%emt 0:00:15]} 37. Rc7 {[%emt 0:01:40]} Kh8 {[%emt 0:00:30]} 38. Qb2 {[%emt 0:01:01]} d4 {[%emt 0:00:47]} 39. Qb5 {[%emt 0:04:11]} Qg5 {[%emt 0:00:27]} 40. Qb7 {[%emt 0:00:00]} Qg6 {[%emt 0:00:00]} 41. Qb5 {[%emt 0:13:44]} Qd6 {[%emt 0:07:32]} 42. Qb7 {[%emt 0:00:15]} Qg6 {[%emt 0:00:22]} 43. Qb5 {[%emt 0:00:09]} 1/2-1/2

[Event "IIFL Wealth 4th Mumbai GM"]
[Site "Mumbai"]
[Date "2018.12.30"]
[Round "1"]
[White "Chowdhury, Sohel"]
[Black "Srihari L R"]
[Result "0-1"]
[ECO "B06"]
[WhiteElo "2012"]
[BlackElo "2316"]
[Annotator "NA"]
[PlyCount "71"]
[EventDate "2018.12.30"]
[EventType "swiss"]
[EventCountry "IND"]
[SourceTitle "playchess.com"]
[Source "ChessBase"]
[SourceQuality "1"]
[TimeControl "40/5400+30:1800+30"]

1. e4 {[%emt 0:00:00]} g6 {[%emt 0:00:00]} 2. Nc3 {[%emt 0:00:09]} Bg7 {[%emt 0:02:59]} 3. g3 {[%emt 0:00:27]} e5 {[%emt 0:02:34]} 4. Bg2 {[%emt 0:01:13]} c6 {[%emt 0:01:05]} 5. d3 {[%emt 0:00:39]} Ne7 {[%emt 0:00:27]} 6. f4 {[%emt 0:05:30]} d6 {[%emt 0:11:36]} 7. Nh3 {[%emt 0:06:58]} O-O {[%emt 0:02:25]} 8. O-O {[%emt 0:00:16]} f5 {[%emt 0:06:08]} 9. Kh1 {[%emt 0:10:47]} h6 {[%emt 0:02:55]} 10. Nf2 {[%emt 0:10:34]} Na6 {[%emt 0:07:00]} 11. Qe2 {[%emt 0:04:48]} Nc7 {[%emt 0:02:15]} 12. Bd2 {[%emt 0:02:10]} a5 {[%emt 0:08:49]} 13. exf5 {[%emt 0:06:28]} gxf5 {[%emt 0:10:05]} 14. Rae1 {[%emt 0:05:33]} Ne6 {[%emt 0:03:23]} 15. Nh3 {[%emt 0:02:33]} Bd7 {[%emt 0:01:02]} 16. Qd1 {[%emt 0:06:54]} b5 {[%emt 0:05:23]} 17. Qc1 {[%emt 0:05:26]} Kh7 {[%emt 0:01:56]} 18. Ne2 {[%emt 0:00:49]} Ng6 {[%emt 0:09:38]} 19. Neg1 {[%emt 0:01:18]} c5 {[%emt 0:03:13]} 20. b3 {[%emt 0:08:56]} c4 {[%emt 0:02:43]} 21. Qd1 {[%emt 0:02:20]} cxd3 {[%emt 0:02:26]} 22. cxd3 {[%emt 0:00:02]} Rc8 {[%emt 0:00:11]} 23. Nf3 {[%emt 0:02:16]} b4 {[%emt 0:00:40]} 24. Rf2 {[%emt 0:08:15]} Kg8 {[%emt 0:01:05]} 25. Rfe2 {[%emt 0:01:19]} Qc7 {[%emt 0:02:10]} 26. Be3 {[%emt 0:04:18]} Bb5 {[%emt 0:01:31]} 27. fxe5 {[%emt 0:01:31]} dxe5 {[%emt 0:00:19]} 28. Rd2 {[%emt 0:01:23]} Rfd8 {[%emt 0:03:18]} 29. Nhg1 {[%emt 0:00:56]} Nc5 {[%emt 0:03:58]} 30. Bf1 {[%emt 0:00:39]} Qd7 {[%emt 0:01:44]} 31. Bxc5 {[%emt 0:00:11]} Rxc5 {[%emt 0:00:09]} 32. d4 {[%emt 0:00:31]} exd4 {[%emt 0:00:15]} 33. Bxb5 {[%emt 0:00:07]} Rxb5 {[%emt 0:00:22]} 34. Nxd4 {[%emt 0:00:53]} Bxd4 {[%emt 0:00:00]} 35. Rxd4 {[%emt 0:00:30]} Qb7+ {[%emt 0:00:00]} 36. Nf3 {[%emt 0:00:30]} 0-1

[Event "IIFL Wealth 4th Mumbai GM"]
[Site "Mumbai"]
[Date "2018.12.30"]
[Round "1"]
[White "Triton, Maxime"]
[Black "Kathmale, Sameer"]
[Result "0-1"]
[ECO "B10"]
[WhiteElo "1937"]
[BlackElo "2312"]
[Annotator "NA"]
[PlyCount "56"]
[EventDate "2018.12.30"]
[EventType "swiss"]
[EventCountry "IND"]
[SourceTitle "playchess.com"]
[Source "ChessBase"]
[SourceQuality "1"]
[TimeControl "40/5400+30:1800+30"]

1. e4 {[%emt 0:00:00]} c6 {[%emt 0:00:00]} 2. Nc3 {[%emt 0:00:00]} d5 {[%emt 0:00:00]} 3. Qe2 {[%emt 0:00:06]} dxe4 {[%emt 0:03:50]} 4. Nxe4 {[%emt 0:00:17]} Nf6 {[%emt 0:00:09]} 5. Nf3 {[%emt 0:02:32]} Nxe4 {[%emt 0:01:32]} 6. Qxe4 {[%emt 0:00:09]} Qd5 {[%emt 0:00:14]} 7. Qxd5 {[%emt 0:03:51]} cxd5 {[%emt 0:00:03]} 8. d4 {[%emt 0:02:26]} Nc6 {[%emt 0:00:26]} 9. c3 {[%emt 0:01:37]} a6 {[%emt 0:01:28]} 10. Bf4 {[%emt 0:03:42]} Bf5 {[%emt 0:03:06]} 11. Kd2 {[%emt 0:11:12]} f6 {[%emt 0:01:36]} 12. Bd3 {[%emt 0:06:08]} Bg4 {[%emt 0:09:03]} 13. Rhe1 {[%emt 0:12:58]} Kf7 {[%emt 0:02:32]} 14. Re3 {[%emt 0:03:14]} g5 {[%emt 0:01:55]} 15. Bg3 {[%emt 0:03:03]} h5 {[%emt 0:07:52]} 16. Kd1 {[%emt 0:22:51]} h4 {[%emt 0:15:04]} 17. Bc7 {[%emt 0:00:21]} h3 {[%emt 0:00:51]} 18. g3 {[%emt 0:06:38]} Bh6 {[%emt 0:03:10]} 19. Be2 {[%emt 0:01:42]} Bf5 {[%emt 0:00:27]} 20. g4 {[%emt 0:02:48]} Bxg4 {[%emt 0:01:24]} 21. Ne5+ {[%emt 0:04:34]} Nxe5 {[%emt 0:00:20]} 22. dxe5 {[%emt 0:00:13]} Bxe2+ {[%emt 0:02:40]} 23. Rxe2 {[%emt 0:00:06]} Rac8 {[%emt 0:00:55]} 24. Bb6 {[%emt 0:01:52]} g4 {[%emt 0:00:20]} 25. Be3 {[%emt 0:02:21]} Bxe3 {[%emt 0:01:32]} 26. Rxe3 {[%emt 0:00:05]} f5 {[%emt 0:00:14]} 27. Kd2 {[%emt 0:01:53]} Ke6 {[%emt 0:02:59]} 28. Rae1 {[%emt 0:00:42]} Rc4 {[%emt 0:00:36]} 0-1

[Event "IIFL Wealth 4th Mumbai GM"]
[Site "Mumbai"]
[Date "2018.12.30"]
[Round "1"]
[White "Lama, Milan"]
[Black "Srijit Paul"]
[Result "0-1"]
[ECO "B02"]
[WhiteElo "1897"]
[BlackElo "2298"]
[Annotator "NA"]
[PlyCount "94"]
[EventDate "2018.12.30"]
[EventType "swiss"]
[EventCountry "IND"]
[SourceTitle "playchess.com"]
[Source "ChessBase"]
[SourceQuality "1"]
[TimeControl "40/5400+30:1800+30"]

1. e4 {[%emt 0:00:00]} Nf6 {[%emt 0:00:00]} 2. e5 {[%emt 0:00:19]} Nd5 {[%emt 0:00:00]} 3. Nf3 {[%emt 0:00:51]} Nb6 {[%emt 0:00:00]} 4. d4 {[%emt 0:01:32]} d5 {[%emt 0:00:00]} 5. Bd3 {[%emt 0:02:47]} Bg4 {[%emt 0:00:05]} 6. Be3 {[%emt 0:01:31]} e6 {[%emt 0:01:04]} 7. c3 {[%emt 0:03:28]} c5 {[%emt 0:01:34]} 8. a4 {[%emt 0:07:36]} cxd4 {[%emt 0:01:01]} 9. cxd4 {[%emt 0:00:22]} Nc6 {[%emt 0:01:03]} 10. Nc3 {[%emt 0:08:28]} Nc4 {[%emt 0:01:54]} 11. Qe2 {[%emt 0:07:30]} Bxf3 {[%emt 0:05:37]} 12. gxf3 {[%emt 0:00:54]} N4a5 {[%emt 0:07:27]} 13. Rd1 {[%emt 0:10:52]} a6 {[%emt 0:03:50]} 14. f4 {[%emt 0:01:54]} g6 {[%emt 0:00:51]} 15. h4 {[%emt 0:06:07]} Nb3 {[%emt 0:01:01]} 16. Bb1 {[%emt 0:04:00]} Qb6 {[%emt 0:02:32]} 17. Qd3 {[%emt 0:07:15]} h5 {[%emt 0:03:21]} 18. Kf1 {[%emt 0:02:51]} Nba5 {[%emt 0:03:04]} 19. Qc2 {[%emt 0:03:03]} Nc4 {[%emt 0:00:51]} 20. Ba2 {[%emt 0:07:02]} Nb4 {[%emt 0:00:47]} 21. Qb1 {[%emt 0:00:40]} Nxa2 {[%emt 0:01:15]} 22. Qxa2 {[%emt 0:00:11]} Rc8 {[%emt 0:00:05]} 23. Rb1 {[%emt 0:04:23]} Be7 {[%emt 0:01:31]} 24. Kg2 {[%emt 0:04:17]} Rc6 {[%emt 0:01:27]} 25. Kg3 {[%emt 0:03:57]} Kd7 {[%emt 0:00:09]} 26. Rhd1 {[%emt 0:02:54]} Rhc8 {[%emt 0:00:50]} 27. Bc1 {[%emt 0:01:04]} Bb4 {[%emt 0:02:05]} 28. Rd3 {[%emt 0:01:42]} Ke8 {[%emt 0:01:57]} 29. f3 {[%emt 0:01:36]} Qd8 {[%emt 0:00:10]} 30. Rd1 {[%emt 0:01:19]} Na5 {[%emt 0:06:06]} 31. Bd2 {[%emt 0:00:22]} Rc4 {[%emt 0:00:07]} 32. Be1 {[%emt 0:01:13]} Nc6 {[%emt 0:03:05]} 33. Bf2 {[%emt 0:00:47]} Ne7 {[%emt 0:01:12]} 34. Rd3 {[%emt 0:01:41]} Nf5+ {[%emt 0:00:10]} 35. Kh3 {[%emt 0:00:10]} Be7 {[%emt 0:00:07]} 36. Ne2 {[%emt 0:01:48]} Bxh4 {[%emt 0:03:49]} 37. Ng3 {[%emt 0:00:27]} Bxg3 {[%emt 0:00:22]} 38. Bxg3 {[%emt 0:00:07]} Qa5 {[%emt 0:00:49]} 39. b3 {[%emt 0:01:42]} Rc2 {[%emt 0:00:25]} 40. Rb2 {[%emt 0:00:00]} Rc1 {[%emt 0:00:00]} 41. Bf2 {[%emt 0:06:35]} R8c3 {[%emt 0:00:30]} 42. Rbd2 {[%emt 0:01:58]} Qc7 {[%emt 0:01:05]} 43. a5 {[%emt 0:04:25]} Kf8 {[%emt 0:03:36]} 44. Qa4 {[%emt 0:02:18]} Kg7 {[%emt 0:00:13]} 45. Qb4 {[%emt 0:00:22]} Rxd3 {[%emt 0:00:07]} 46. Rxd3 {[%emt 0:00:11]} Rh1+ {[%emt 0:00:06]} 47. Kg2 {[%emt 0:00:49]} Qc1 {[%emt 0:00:06]} 0-1

[Event "IIFL Wealth 4th Mumbai GM"]
[Site "Mumbai"]
[Date "2018.12.30"]
[Round "1"]
[White "Arya Nirag Shah"]
[Black "Konguvel, Ponnuswamy"]
[Result "0-1"]
[ECO "B06"]
[WhiteElo "1812"]
[BlackElo "2282"]
[Annotator "NA"]
[PlyCount "64"]
[EventDate "2018.12.30"]
[EventType "swiss"]
[EventCountry "IND"]
[SourceTitle "playchess.com"]
[Source "ChessBase"]
[SourceQuality "1"]
[TimeControl "40/5400+30:1800+30"]

1. d4 {[%emt 0:00:00]} d6 {[%emt 0:00:00]} 2. e4 {[%emt 0:00:32]} g6 {[%emt 0:00:03]} 3. Nc3 {[%emt 0:00:56]} Bg7 {[%emt 0:00:06]} 4. f4 {[%emt 0:00:13]} a6 {[%emt 0:00:20]} 5. Nf3 {[%emt 0:01:10]} b5 {[%emt 0:00:40]} 6. a3 {[%emt 0:00:51]} Nd7 {[%emt 0:00:42]} 7. Be2 {[%emt 0:02:20]} Bb7 {[%emt 0:02:39]} 8. O-O {[%emt 0:02:31]} Ngf6 {[%emt 0:03:41]} 9. e5 {[%emt 0:05:02]} Nd5 {[%emt 0:00:31]} 10. Nxd5 {[%emt 0:00:50]} Bxd5 {[%emt 0:00:04]} 11. a4 {[%emt 0:11:22]} Rb8 {[%emt 0:19:18]} 12. axb5 {[%emt 0:04:14]} axb5 {[%emt 0:00:08]} 13. b3 {[%emt 0:13:08]} b4 {[%emt 0:01:58]} 14. Bb2 {[%emt 0:05:04]} O-O {[%emt 0:00:34]} 15. Ne1 {[%emt 0:04:24]} e6 {[%emt 0:06:06]} 16. Qd2 {[%emt 0:02:13]} dxe5 {[%emt 0:06:39]} 17. fxe5 {[%emt 0:02:18]} c5 {[%emt 0:00:23]} 18. Nd3 {[%emt 0:04:00]} Qb6 {[%emt 0:16:30]} 19. Nxc5 {[%emt 0:16:01]} Nxc5 {[%emt 0:00:56]} 20. dxc5 {[%emt 0:00:06]} Qxc5+ {[%emt 0:00:06]} 21. Bd4 {[%emt 0:00:46]} Qc7 {[%emt 0:00:49]} 22. Ra7 {[%emt 0:01:40]} Rb7 {[%emt 0:01:32]} 23. Rxb7 {[%emt 0:02:25]} Qxb7 {[%emt 0:01:10]} 24. Bd3 {[%emt 0:10:16]} Rd8 {[%emt 0:03:00]} 25. Qf2 {[%emt 0:02:30]} Bxg2 {[%emt 0:11:58]} 26. Ra1 {[%emt 0:01:51]} Qd7 {[%emt 0:08:10]} 27. Bb6 {[%emt 0:01:03]} Ra8 {[%emt 0:00:31]} 28. Rxa8+ {[%emt 0:02:50]} Bxa8 {[%emt 0:00:05]} 29. Bd4 {[%emt 0:01:44]} Qd5 {[%emt 0:01:09]} 30. Kf1 {[%emt 0:00:04]} Bxe5 {[%emt 0:00:28]} 31. Bxe5 {[%emt 0:00:14]} Qxe5 {[%emt 0:00:06]} 32. Qb6 {[%emt 0:01:08]} Qf4+ {[%emt 0:02:10]} 0-1

[Event "IIFL Wealth 4th Mumbai GM"]
[Site "Mumbai"]
[Date "2018.12.30"]
[Round "1"]
[White "Rebut, Paul"]
[Black "Dushyant Sharma"]
[Result "0-1"]
[ECO "C45"]
[WhiteElo "1740"]
[BlackElo "2271"]
[Annotator "NA"]
[PlyCount "50"]
[EventDate "2018.12.30"]
[EventType "swiss"]
[EventCountry "IND"]
[SourceTitle "playchess.com"]
[Source "ChessBase"]
[SourceQuality "1"]
[TimeControl "40/5400+30:1800+30"]

1. e4 {[%emt 0:00:00]} e5 {[%emt 0:00:00]} 2. Nf3 {[%emt 0:00:24]} Nc6 {[%emt 0:00:00]} 3. d4 {[%emt 0:00:17]} exd4 {[%emt 0:00:08]} 4. Nxd4 {[%emt 0:00:53]} Nf6 {[%emt 0:00:11]} 5. Nxc6 {[%emt 0:00:13]} bxc6 {[%emt 0:00:06]} 6. e5 {[%emt 0:00:33]} Qe7 {[%emt 0:00:11]} 7. Qe2 {[%emt 0:00:16]} Nd5 {[%emt 0:00:09]} 8. c4 {[%emt 0:00:40]} Nb6 {[%emt 0:00:17]} 9. Nd2 {[%emt 0:01:03]} Qe6 {[%emt 0:00:41]} 10. Nf3 {[%emt 0:06:11]} Bc5 {[%emt 0:12:44]} 11. Bd2 {[%emt 0:12:19]} a5 {[%emt 0:02:49]} 12. Ng5 {[%emt 0:11:17]} Qe7 {[%emt 0:11:39]} 13. f4 {[%emt 0:16:38]} Bb4 {[%emt 0:07:15]} 14. a3 {[%emt 0:06:03]} Bxd2+ {[%emt 0:01:42]} 15. Qxd2 {[%emt 0:00:27]} f6 {[%emt 0:06:52]} 16. Nf3 {[%emt 0:03:19]} fxe5 {[%emt 0:01:16]} 17. fxe5 {[%emt 0:01:15]} Ba6 {[%emt 0:08:17]} 18. Qc2 {[%emt 0:09:36]} Qc5 {[%emt 0:08:54]} 19. Be2 {[%emt 0:08:53]} Qe3 {[%emt 0:01:08]} 20. b3 {[%emt 0:01:50]} a4 {[%emt 0:00:55]} 21. Qd3 {[%emt 0:04:15]} Qxd3 {[%emt 0:00:21]} 22. Bxd3 {[%emt 0:00:07]} axb3 {[%emt 0:00:37]} 23. Nd2 {[%emt 0:01:16]} O-O {[%emt 0:01:36]} 24. Nxb3 {[%emt 0:02:23]} Bxc4 {[%emt 0:00:14]} 25. Nc5 {[%emt 0:01:51]} d6 {[%emt 0:01:15]} 0-1

[Event "IIFL Wealth 4th Mumbai GM"]
[Site "Mumbai"]
[Date "2018.12.30"]
[Round "1"]
[White "Bhasima, Prashan"]
[Black "Mohota, Nisha"]
[Result "0-1"]
[ECO "C55"]
[WhiteElo "1658"]
[BlackElo "2264"]
[Annotator "NA"]
[PlyCount "72"]
[EventDate "2018.12.30"]
[EventType "swiss"]
[EventCountry "IND"]
[SourceTitle "playchess.com"]
[Source "ChessBase"]
[SourceQuality "1"]
[TimeControl "40/5400+30:1800+30"]

1. e4 e5 2. Nf3 Nc6 3. Bc4 Nf6 4. d3 Be7 5. Nc3 O-O 6. h3 d6 7. Be3 Na5 8. Bb3 Nxb3 9. axb3 c5 10. Qd2 Bd7 11. g4 Bc6 12. g5 Nh5 13. h4 f5 14. gxf6 Nxf6 15. Ng5 Qd7 16. O-O-O a5 17. f4 exf4 18. Bxf4 a4 19. Rdg1 axb3 20. cxb3 d5 21. Qg2 Nh5 22. Be5 dxe4 23. Ngxe4 Bf6 24. Bxf6 Nxf6 25. Kc2 b6 26. Rh3 Rae8 27. Rg3 Re7 28. Rf3 Bxe4 29. Nxe4 Nd5 30. Rxf8+ Kxf8 31. Rf1+ Rf7 32. Rxf7+ Qxf7 33. Qh2 Qf4 34. Qh3 Ne3+ 35. Kc3 Nf5 36. h5 Qc1# {Kd4} 0-1

[Event "IIFL Wealth 4th Mumbai GM"]
[Site "Mumbai"]
[Date "2018.12.30"]
[Round "1"]
[White "Regmi, Shikhar"]
[Black "Aditya Mittal"]
[Result "0-1"]
[ECO "A06"]
[WhiteElo "1610"]
[BlackElo "2251"]
[Annotator "NA"]
[PlyCount "86"]
[EventDate "2018.12.30"]
[EventType "swiss"]
[EventCountry "IND"]
[SourceTitle "playchess.com"]
[Source "ChessBase"]
[SourceQuality "1"]
[TimeControl "40/5400+30:1800+30"]

1. Nf3 {[%emt 0:00:00]} d5 {[%emt 0:00:00]} 2. g3 {[%emt 0:00:27]} Nf6 {[%emt 0:00:00]} 3. Bg2 {[%emt 0:00:29]} g6 {[%emt 0:00:04]} 4. O-O {[%emt 0:00:20]} Bg7 {[%emt 0:00:12]} 5. d4 {[%emt 0:01:18]} c6 {[%emt 0:00:31]} 6. c3 {[%emt 0:00:41]} O-O {[%emt 0:00:36]} 7. Bg5 {[%emt 0:00:26]} h6 {[%emt 0:05:29]} 8. Bf4 {[%emt 0:00:38]} Bf5 {[%emt 0:01:52]} 9. Qc1 {[%emt 0:01:24]} Kh7 {[%emt 0:01:55]} 10. Ne5 {[%emt 0:02:24]} Nfd7 {[%emt 0:02:06]} 11. Nf3 {[%emt 0:03:12]} g5 {[%emt 0:04:38]} 12. Bd2 {[%emt 0:03:44]} e6 {[%emt 0:01:54]} 13. h4 {[%emt 0:00:43]} g4 {[%emt 0:03:16]} 14. Nh2 {[%emt 0:00:35]} c5 {[%emt 0:03:28]} 15. dxc5 {[%emt 0:01:57]} Nxc5 {[%emt 0:01:20]} 16. f3 {[%emt 0:00:44]} gxf3 {[%emt 0:01:57]} 17. Nxf3 {[%emt 0:01:08]} Ne4 {[%emt 0:01:56]} 18. Bf4 {[%emt 0:02:07]} Nc6 {[%emt 0:01:06]} 19. Kh2 {[%emt 0:01:33]} e5 {[%emt 0:05:42]} 20. Be3 {[%emt 0:04:02]} Be6 {[%emt 0:08:07]} 21. Qc2 {[%emt 0:01:13]} f5 {[%emt 0:02:26]} 22. Nbd2 {[%emt 0:00:37]} Nxd2 {[%emt 0:07:03]} 23. Bxd2 {[%emt 0:00:59]} e4 {[%emt 0:02:34]} 24. Ng1 {[%emt 0:01:49]} Be5 {[%emt 0:11:28]} 25. Bf4 {[%emt 0:01:14]} Bxf4 {[%emt 0:00:44]} 26. Rxf4 {[%emt 0:00:11]} Ne5 {[%emt 0:00:13]} 27. Bh3 {[%emt 0:01:26]} Ng6 {[%emt 0:02:00]} 28. Rff1 {[%emt 0:03:11]} Qd6 {[%emt 0:04:00]} 29. h5 {[%emt 0:01:17]} Ne5 {[%emt 0:02:36]} 30. Rf4 {[%emt 0:01:29]} Rg8 {[%emt 0:00:57]} 31. Raf1 {[%emt 0:02:38]} Rg5 {[%emt 0:02:18]} 32. e3 {[%emt 0:03:33]} Rxh5 {[%emt 0:01:52]} 33. Ne2 {[%emt 0:00:20]} Ng4+ {[%emt 0:00:49]} 34. Rxg4 {[%emt 0:00:56]} fxg4 {[%emt 0:00:04]} 35. Nf4 {[%emt 0:01:32]} Rxh3+ {[%emt 0:00:07]} 36. Nxh3 {[%emt 0:00:20]} gxh3 {[%emt 0:00:03]} 37. Qf2 {[%emt 0:00:22]} Rg8 {[%emt 0:00:16]} 38. Qf4 {[%emt 0:00:52]} Qxf4 {[%emt 0:00:03]} 39. Rxf4 {[%emt 0:00:15]} Kg7 {[%emt 0:00:08]} 40. g4 {[%emt 0:00:00]} Rf8 {[%emt 0:00:00]} 41. Kxh3 {[%emt 0:00:29]} h5 {[%emt 0:00:22]} 42. Kh4 {[%emt 0:00:22]} Rxf4 {[%emt 0:00:08]} 43. exf4 {[%emt 0:00:03]} Bxg4 {[%emt 0:00:13]} 0-1

[Event "IIFL Wealth 4th Mumbai GM"]
[Site "Mumbai"]
[Date "2018.12.30"]
[Round "1"]
[White "Laoussing, Mathis"]
[Black "Varga, Klara"]
[Result "0-1"]
[ECO "C01"]
[WhiteElo "1438"]
[BlackElo "2242"]
[Annotator "NA"]
[PlyCount "56"]
[EventDate "2018.12.30"]
[EventType "swiss"]
[EventCountry "IND"]
[SourceTitle "playchess.com"]
[Source "ChessBase"]
[SourceQuality "1"]
[TimeControl "40/5400+30:1800+30"]

1. e4 {[%emt 0:00:00]} e6 {[%emt 0:00:00]} 2. d4 {[%emt 0:00:00]} d5 {[%emt 0:00:00]} 3. exd5 {[%emt 0:00:08]} exd5 {[%emt 0:00:00]} 4. c4 {[%emt 0:00:09]} Nf6 {[%emt 0:00:00]} 5. Nc3 {[%emt 0:01:06]} Bb4 {[%emt 0:00:13]} 6. Qb3 {[%emt 0:04:08]} Nc6 {[%emt 0:00:26]} 7. Be3 {[%emt 0:00:58]} O-O {[%emt 0:00:28]} 8. Bd3 {[%emt 0:00:39]} dxc4 {[%emt 0:01:54]} 9. Bxc4 {[%emt 0:03:15]} Qe7 {[%emt 0:03:10]} 10. Bd3 {[%emt 0:03:03]} Nxd4 {[%emt 0:00:30]} 11. Qc4 {[%emt 0:03:23]} c5 {[%emt 0:00:20]} 12. O-O-O {[%emt 0:00:28]} Be6 {[%emt 0:00:21]} 13. Bxh7+ {[%emt 0:01:47]} Nxh7 {[%emt 0:00:21]} 14. Qd3 {[%emt 0:00:30]} Bxc3 {[%emt 0:00:34]} 15. bxc3 {[%emt 0:02:28]} Bf5 {[%emt 0:00:26]} 16. Qc4 {[%emt 0:03:51]} b5 {[%emt 0:00:56]} 17. Qf1 {[%emt 0:01:01]} Qe4 {[%emt 0:00:08]} 18. Rd3 {[%emt 0:04:39]} Qxd3 {[%emt 0:01:31]} 19. Qxd3 {[%emt 0:00:06]} Bxd3 {[%emt 0:00:04]} 20. cxd4 {[%emt 0:00:07]} cxd4 {[%emt 0:00:06]} 21. Bxd4 {[%emt 0:00:13]} Rfd8 {[%emt 0:00:08]} 22. Be3 {[%emt 0:00:43]} Rac8+ {[%emt 0:00:05]} 23. Kb2 {[%emt 0:00:16]} Rc2+ {[%emt 0:00:06]} 24. Kb3 {[%emt 0:00:17]} Rdc8 {[%emt 0:00:43]} 25. Bd4 {[%emt 0:00:35]} a5 {[%emt 0:00:37]} 26. Nf3 {[%emt 0:01:52]} Be4 {[%emt 0:00:09]} 27. Re1 {[%emt 0:00:53]} Bd5+ {[%emt 0:00:05]} 28. Ka3 {[%emt 0:00:31]} Rxa2# {[%emt 0:00:08]} 0-1